Cogmind - Beta 16 @@@ ROGUE MODE // 2025.11.26 @ 23:00:29 Player: shapeshifter Result: Destroyed by 9X-HQ0(g) with Beamcaster Performance ------------- Evolutions (3) 1500 Regions Visited (9) 1800 Robots Destroyed (149) 745 Value Destroyed (4179) 4179 Prototype IDs (35) 700 Alien Tech Used (0) 0 Bonus (145) 145 TOTAL SCORE: 9069 Bonus ------- High Alert Combat Kills 25 Follower Combat Kills 108 Registered with UFD 300 Friendly Fire -288 Cogmind --------- Core Integrity 0/700 Matter 260/300 Energy 153/310 System Corruption 0% Temperature Cool (14) Movement Treading (240) Ox1 Location -7/Scraptown Parts ------- > --- POWER (1) -------- Cooled Deuterium Engine > --- PROPULSION (4) --- Medium Treads Medium Treads > --- UTILITY (6) ------ High-capacity Storage Unit Machine Analyzer Graphene Brace > --- WEAPON (2) ------- 01-MTF's Shockpuncher Flak Cannon > --- INVENTORY (20) --- Cooled Gravmag System Cooled Gravmag System Advanced Heat Sink Makeshift Microdissipator Network Huge Storage Unit Experimental Sensor Array Armor Integrity Analyzer Transmission Jammer Hacking Suite Hacking Suite Hacking Suite A0-MCA's Component Scanner Tech Extrapolator Precision Grenade Launcher Remote Datajack CPS Tube (2) CPS Tube (2) Impact Mace DRS Beacon (Ready) Peak State ------------ > --- POWER ------------ Cooled Deuterium Engine > --- PROPULSION ------- Medium Treads Medium Treads Medium Treads Medium Treads > --- UTILITY ---------- Huge Storage Unit Machine Analyzer Experimental Sensor Array Advanced Targeting Computer Transmission Jammer Improved Medium Armor Plating > --- WEAPON ----------- Cooled Plasma Cannon Remote Datajack > --- INVENTORY -------- Cooled Deuterium Engine Cooled Deuterium Engine Medium Treads Medium Treads Cooled Gravmag System Cooled Gravmag System Advanced Heat Sink High-capacity Storage Unit Armor Integrity Analyzer Matter Filter Centrium Light Armor Plating Medium Reflective Plating Graphene Brace Shield Generator Improved Trap Extractor 01-MTF's Shockpuncher Improved EM Pulse Cannon Improved EM Pulse Cannon Enhanced Autogun Flak Cannon Flak Cannon Gauss Cannon Precision Grenade Launcher Plasma Cutter Impact Mace [Rating: 66] Favorites ----------- Power Cooled Deuterium Engine Engine Cooled Deuterium Engine Propulsion Medium Treads Treads Medium Treads Wheel Armored Huge Wheel Hover Unit Cooled Airjet Utility Huge Storage Unit Device Graphene Brace Storage Huge Storage Unit Processor Advanced Targeting Computer Hackware Hacking Suite Protection Medium Reflective Plating Weapon High-powered Shotgun Energy Gun Medium Laser Energy Cannon Cooled Plasma Cannon Ballistic Gun High-powered Shotgun Ballistic Cannon Flak Cannon Launcher Precision Grenade Launcher Special Weapon Remote Datajack Impact Weapon Impact Mace Special Melee Weapon Datajack Build | -11 -10 -10 -9 -9 -8 -7 -7 -7 -7 ------- Run | Yrd Mat Min Mat Min Mat Fac Sto Rec Scr Slots Evolved 6 | . . . 2 . 2 2 . . . Power . | . . . . . . . . . . Propulsion 2 | . . . 1 . 1 . . . . Utility 4 | . . . 1 . 1 2 . . . Weapon . | . . . . . . . . . . Parts Attached 111 | 7 5 1 34 1 17 13 21 4 8 Power 10 | 1 1 . 3 . . 1 3 . 1 Engine 10 | 1 1 . 3 . . 1 3 . 1 Core . | . . . . . . . . . . Reactor . | . . . . . . . . . . Propulsion 30 | 2 . . 10 . 7 4 5 . 2 Treads 28 | 2 . . 10 . 7 3 4 . 2 Leg . | . . . . . . . . . . Wheel 1 | . . . . . . . 1 . . Hover 1 | . . . . . . 1 . . . Flight . | . . . . . . . . . . Utility 35 | 2 2 1 8 1 8 5 4 3 1 Device 10 | 1 1 . 1 1 . 3 2 1 . Storage 6 | 1 1 . 3 . . . . 1 . Processor 3 | . . . . . 2 1 . . . Hackware 2 | . . . 1 . 1 . . . . Protection 14 | . . 1 3 . 5 1 2 1 1 Artifact . | . . . . . . . . . . Weapon 36 | 2 2 . 13 . 2 3 9 1 4 Energy Gun 5 | 1 . . 3 . . . 1 . . Energy Cannon 3 | . . . 1 . . . . 1 1 Ballistic Gun 14 | 1 1 . 8 . 2 1 1 . . Ballistic Cannon 5 | . . . . . . 1 3 . 1 Launcher 3 | . . . 1 . . . 1 . 1 Special Weapon 3 | . . . . . . . 2 . 1 Impact Weapon 2 | . . . . . . 1 1 . . Slashing Weapon . | . . . . . . . . . . Piercing Weapon . | . . . . . . . . . . Special Melee Weapon 1 | . 1 . . . . . . . . Unidentified Prototypes 12 | . . . 4 . . 1 5 2 . Parts Lost 25 | . . 3 1 1 2 2 4 . 12 Power 2 | . . 1 . . . . . . 1 Propulsion 10 | . . 1 1 . 1 1 2 . 4 Utility 8 | . . . . 1 1 1 1 . 4 Weapon 5 | . . 1 . . . . 1 . 3 Highest Loss Streak 12 | . . 3 1 1 1 1 2 . 12 To Critical Strikes . | . . . . . . . . . . Average Backups 20 | 3 9 10 20 24 20 17 20 24 24 Power . | 1 1 1 . 1 1 1 1 1 . Propulsion 3 | 1 . . 4 6 2 1 2 4 3 Utility 8 | . 4 5 7 10 8 6 8 9 10 Weapon 6 | . 2 2 7 6 6 6 6 8 6 Tool/Special . | . . . . . . . . . . Unused Backups 60 | . 5 . 11 1 14 2 7 5 15 Power 4 | . 1 . 1 . 1 . 1 . . Propulsion 14 | . 2 . 5 . 5 . . . 2 Utility 26 | . 1 . . 1 5 1 5 4 9 Weapon 12 | . 1 . 4 . 3 . 1 1 2 Tool/Special 4 | . . . 1 . . 1 . . 2 Average Slot Usage (%) 97 | . 100 96 96 99 99 92 93 99 99 Engine 9 | . 14 13 9 11 9 7 7 7 7 Treads 29 | . 28 27 30 32 35 29 21 30 29 Device 10 | . 14 12 . 7 1 15 14 15 14 Storage 9 | . 14 14 11 11 9 7 7 7 7 Processor 7 | . . . . . 12 8 15 15 15 Hackware 2 | . . . 10 2 1 . . . . Protection 7 | . . 1 11 11 11 5 6 7 6 Energy Gun 2 | . 14 13 . . . . . . . Ballistic Gun 10 | . 13 13 21 22 17 12 3 . . Ballistic Cannon 1 | . . . . . . 1 8 . 1 Special Weapon 1 | . . . . . . . . 6 5 Impact Weapon 2 | . . . . . . . 1 6 6 Peak Build Rating 66 | 7 11 10 28 26 39 52 63 66 65 Average Rating 39 | 5 8 8 23 24 30 49 55 62 63 On Entrance 28 | . 7 9 5 26 25 38 52 62 63 Avg Prop Armor Cover (%) 13 | . . . . . . . 13 . . Naked Turns . | . . . . . . . . . . Heaviest Build 112 | 14 21 25 101 102 107 80 112 109 111 Greatest Support 112 | 40 40 40 68 65 89 87 112 112 112 Greatest Overweight (x) 3 | . . 1 1 2 1 1 3 . 1 Average Overweight (x) . | . . . . 1 . . . . . Largest Inventory Capacity 25 | 8 10 10 25 25 25 20 25 25 25 Average Capacity 21 | 7 9 10 21 25 21 20 22 25 24 Most Carried 25 | 7 10 10 25 25 25 20 25 25 25 Average Carried 20 | 4 9 9 20 24 20 19 21 24 24 Final Capacity 25 | 8 10 10 25 25 20 20 25 25 20 Final Carried 25 | 6 10 10 25 25 20 20 25 25 19 Class Distribution -------------------- 53% | Mutant 30% | Commander-Mutant 14% | Scavenger-Mutant Dominant Class ---------------- Mutant | -10/Materials Mutant | -10/Mines Mutant | -9/Materials Mutant | -9/Mines Mutant | -8/Materials Scavenger-Mutant | -7/Factory Mutant | -7/Storage Commander-Mutant | -7/Recycling Commander-Mutant | -7/Scraptown Resources | -11 -10 -10 -9 -9 -8 -7 -7 -7 -7 ----------- Run | Yrd Mat Min Mat Min Mat Fac Sto Rec Scr Matter Collected 4292 | 281 105 41 1175 220 457 700 742 476 95 Remotely . | . . . . . . . . . . Salvage Created 4898 | 125 405 173 1501 242 589 862 619 382 . Parts 276 | 6 23 16 105 17 30 45 22 12 . Haulers Intercepted 11 | . . . 4 . 1 1 5 . . Recyclers Shooed 8 | . . . 2 . 1 3 1 1 . Parts Field Recycled . | . . . . . . . . . . Retrieved Matter . | . . . . . . . . . . Parts Self-Destructed . | . . . . . . . . . . Prevented . | . . . . . . . . . . Parts Restored . | . . . . . . . . . . Kills | -11 -10 -10 -9 -9 -8 -7 -7 -7 -7 ------- Run | Yrd Mat Min Mat Min Mat Fac Sto Rec Scr Combat Hostiles Destroyed 104 | . 11 8 35 10 10 13 14 3 . Melee 2 | . . . . . . . 1 1 . Guns 84 | . 11 8 35 10 8 11 1 . . Cannons 11 | . . . . . . 2 8 1 . AOE 6 | . . . . . 2 . 4 . . Classes Destroyed 16 | 2 4 1 3 1 3 1 1 . . Worker 5 | . . 1 1 . . 1 2 . . Builder 4 | . . . . . 1 2 1 . . Tunneler 5 | 3 . . . 2 . . . . . Hauler 11 | . . . 4 . 1 1 5 . . Recycler 8 | 1 1 . 1 . 1 1 . 3 . Operator 5 | . 1 . 3 . . . 1 . . Watcher 9 | . 1 . 5 . 1 1 1 . . Swarmer 28 | . 6 6 14 2 . . . . . Grunt 39 | . 5 2 10 6 6 5 5 . . Brawler 1 | . . . 1 . . . . . . Duelist 2 | . . . . . . . 1 1 . Sentry 22 | . . . 10 . 2 4 4 2 . Hunter 3 | . . . . . 1 2 . . . Programmer 5 | . . . . . . 2 3 . . Heavy 1 | . . . . . 1 . . . . Assembled 2 | . . . . 2 . . . . . Best Kill Streak 6 | 3 5 3 5 3 5 5 6 1 . Combat Bots Only 5 | . 5 3 5 3 5 4 5 1 . Max Kills in Single Turn 2 | 1 1 1 2 1 2 2 2 1 . Gunslinging 1 | . . . . . . 1 . . . Exploded 2 | . . . . . 2 . 1 . . Melee 1 | . . . . . . . 1 1 . Uniques/NPCs Destroyed 1 | . . . . . . . 1 . . 01-MTF (-7/Storage) Combat | -11 -10 -10 -9 -9 -8 -7 -7 -7 -7 -------- Run | Yrd Mat Min Mat Min Mat Fac Sto Rec Scr Hostile Shots Fired 994 | . 32 46 149 35 71 221 146 45 249 Missed 310 | . 11 10 35 5 17 79 50 15 88 Hits 684 | . 21 36 114 30 54 142 96 30 161 Melee 9 | . . . 2 4 . . . . 3 Projectile 675 | . 21 36 112 26 54 142 96 30 158 AOE 2 | . . 2 . . . . . . . Critical Strikes 31 | . . 1 3 . 3 4 3 . 17 Actively Blocked 24 | . . . . . . 4 3 . 17 Part Disruptions 1 | . . . . . . 1 . . . Damage Taken 8798 | . 248 448 1339 346 1185 1445 1219 129 2439 Core 1054 | . 64 62 96 62 61 93 117 8 491 Absorbed by Shields 705 | . . . . . . 64 . 90 551 Ignored by Resistances 32 | . . . . . . . . 21 11 Core Remaining (%) 74 | 100 . 49 . 60 88 . . . . Volleys Fired 400 | 21 47 25 104 23 40 63 50 18 9 Largest 2 | 2 2 2 2 2 2 2 2 2 1 Hottest 74 | 70 70 70 68 50 51 68 74 62 35 Shots Fired 757 | 42 93 50 208 47 80 127 81 20 9 Gun 646 | 42 93 50 208 47 80 104 21 1 . Cannon 82 | . . . . . . 23 51 3 5 Launcher 8 | . . . . . . . 8 . . Special 21 | . . . . . . . 1 16 4 Kinetic 613 | 21 47 25 196 47 80 127 66 4 . Thermal 97 | 21 46 25 . . . . . . 5 Explosive 8 | . . . . . . . 8 . . Electromagnetic 18 | . . . 12 . . . 6 . . Robot Hit Streak 23 | 7 6 8 15 9 23 15 21 7 6 Robot Miss Streak 6 | 2 4 5 6 4 4 3 5 2 1 Penetration Max 1 | . . . . . 1 1 . . . Secondary Targets 7 | . 1 1 3 1 . 1 . . . Max Gunslinging Chain 1 | . 1 1 1 1 . 1 . . . Shots Hit Robots 546 | 30 48 29 142 33 60 92 76 30 6 Core Hits 289 | 8 26 14 74 17 28 38 75 9 . Critical Kills 2 | . . . . 1 . . . 1 . Critical Parts Destroyed 4 | . . . . . 1 . 1 2 . Critical Strikes 12 | 1 5 . . 1 1 . 1 3 . Burn 6 | 1 5 . . . . . . . . Destroy 2 | . . . . 1 1 . . . . Smash 4 | . . . . . . . 1 3 . Melee Attacks 34 | . 1 . . . . 6 9 15 3 Impact 33 | . . . . . . 6 9 15 3 Slashing . | . . . . . . . . . . Piercing . | . . . . . . . . . . Sneak Attacks 11 | . 1 . . . . . 3 7 . Combat Hostiles . | . . . . . . . . . . Follow-up Attacks . | . . . . . . . . . . Damage Inflicted 11107 | 287 532 321 2404 605 1333 1924 2680 955 66 Guns 7163 | 287 532 321 2361 605 1144 1630 269 14 . Cannons 1498 | . . . . . . 294 1050 88 66 Explosions 1193 | . . . 43 . 189 . 961 . . Melee 1218 | . . . . . . . 365 853 . Ramming 35 | . . . . . . . 35 . . Kinetic 7646 | 99 175 109 2255 605 1144 1924 1233 102 . Thermal 892 | 188 357 212 43 . . . 26 . 66 Explosive 1124 | . . . . . 189 . 935 . . Electromagnetic 192 | . . . 106 . . . 86 . . Impact 1218 | . . . . . . . 365 853 . Slashing . | . . . . . . . . . . Piercing . | . . . . . . . . . . Highest Corruption 7 | . . . . 5 . 5 7 7 . Average Corruption 5 | . . . . 5 . 2 5 7 . Corruption Purged . | . . . . . . . . . . Corruption Blocked . | . . . . . . . . . . Effects 117 | . . . . 29 . 13 40 35 . Message Errors 28 | . . . . 5 . 3 8 12 . Matter Fused 20 | . . . . 5 . 1 8 6 . Heat Flow Errors 16 | . . . . 4 . . 6 6 . Energy Discharges 19 | . . . . 5 . 3 7 4 . Parts Rejected 4 | . . . . 1 . 1 2 . . Parts Fused 1 | . . . . 1 . . . . . Data Loss (minor) 17 | . . . . 4 . 3 5 5 . Data Loss (major) 5 | . . . . 2 . . 2 1 . Misfires 5 | . . . . 1 . 1 2 1 . Alerts 2 | . . . . 1 . 1 . . . Overload Shots . | . . . . . . . . . . Overflow Damage 439 | . . . . . 5 . 293 115 26 Projectiles 26 | . . . . . . . . . 26 Explosions 8 | . . . . . 5 . 3 . . Melee 405 | . . . . . . . 290 115 . Knockbacks 20 | . . . . . . 5 12 3 . Impact 1 | . . . . . . . . 1 . Kinetic 19 | . . . . . . 5 12 2 . Secondary . | . . . . . . . . . . Self-Inflicted Damage 136 | . . . . . 52 . 84 . . Shots 3 | . . . . . 1 . 2 . . Rammed 3 | . . . . . . . 3 . . Targets Rammed 3 | . . . . . . . 3 . . Kicked . | . . . . . . . . . . Crushed . | . . . . . . . . . . Highest Temperature 263 | 190 106 256 96 220 52 57 263 228 5 Average Temperature 45 | 93 35 79 23 94 11 16 58 82 5 Received Heat Transfer 2025 | . 45 108 387 108 324 313 315 40 385 Siege Activations . | . . . . . . . . . . Martial Activations . | . . . . . . . . . . Shielding Activations . | . . . . . . . . . . Robots Disrupted . | . . . . . . . . . . Combat Hostiles . | . . . . . . . . . . Robots Corrupted 2 | . . . . . . . 1 1 . Combat Hostiles 1 | . . . . . . . . 1 . Parts Fried 7 | . . . . . . . 5 2 . Impact Corruptions 9 | . . . . . . . 7 2 . Robots Melted . | . . . . . . . . . . Combat Hostiles . | . . . . . . . . . . Parts Melted 1 | . 1 . . . . . . . . Heat Transferred 2851 | 629 1443 629 . . . . 50 . 100 Parts Sabotaged . | . . . . . . . . . . Parts Stolen . | . . . . . . . . . . Parts Stripped . | . . . . . . . . . . Power Chain Reactions 2 | . . . 1 . . . 1 . . Alert | -11 -10 -10 -9 -9 -8 -7 -7 -7 -7 ------- Run | Yrd Mat Min Mat Min Mat Fac Sto Rec Scr Maximum Alert Level 2 | . 1 . 2 1 . . 1 . . Low Security (%) 82 | 100 98 100 36 95 100 100 94 100 . Level 1 11 | . 1 . 38 4 . . 5 . . Level 2 6 | . . . 24 . . . . . . Level 3 . | . . . . . . . . . . Level 4 . | . . . . . . . . . . Level 5 . | . . . . . . . . . . High Security . | . . . . . . . . . . Max Security . | . . . . . . . . . . Peak Influence 559 | 10 205 110 559 211 168 185 211 93 . Initial 201 | . . . 23 201 . 50 29 65 . Average 123 | . 62 58 266 72 80 107 103 24 . Influence Increases 3727 | 20 410 210 1071 263 428 457 537 331 . Destroy 0b10 Robot/C 2100 | . 220 160 700 200 200 260 260 100 . Destroy 0b10 Robot/NC 235 | 20 15 5 70 10 20 30 50 15 . Destroy Leader 560 | . 42 30 208 20 64 94 102 . . Allied During Kill 45 | . . . . 3 . . . 42 . Successful Hack 179 | . 28 . 41 . 30 16 12 52 . Select Force Hacks 150 | . 30 . . . . . . 120 . Disable Machine 270 | . . . 30 30 90 45 75 . . Destroy Structure 83 | . . . 7 . 24 12 38 2 . Lose Combat Pursuer 105 | . 75 15 15 . . . . . . Influence Decreases 3727 | 20 410 150 613 781 316 504 433 500 . Entered New Map 556 | . . . 37 317 . 62 36 104 . Time Decay 3029 | 20 410 120 566 434 296 422 377 384 . Lost Part 110 | . . 30 10 10 20 20 20 . . Lost Ally 32 | . . . . 20 . . . 12 . Squads Dispatched 15 | . 3 . 4 . 2 3 3 . . Investigation 3 | . 1 . 1 . 1 . . . . Extermination 4 | . . . . . . 2 2 . . Reinforcement 7 | . 2 . 2 . 1 1 1 . . Assault 1 | . . . 1 . . . . . . Garrison . | . . . . . . . . . . Intercept . | . . . . . . . . . . Searches Triggered . | . . . . . . . . . . Construction Impeded . | . . . . . . . . . . Haulers Reinforced . | . . . . . . . . . . Active Scanning Responses . | . . . . . . . . . . Cargo Convoy Interrupts . | . . . . . . . . . . Stealth | -11 -10 -10 -9 -9 -8 -7 -7 -7 -7 --------- Run | Yrd Mat Min Mat Min Mat Fac Sto Rec Scr Distress Signals 3 | . 1 . 2 . . . . . . Communications Jammed 8 | . . . . . . 3 5 . . Distress Signals 3 | . . . . . . 3 . . . Times Spotted 188 | . 27 18 47 12 19 15 19 3 28 Peak Tracking Total 20 | . 6 18 5 4 5 4 5 1 20 Tactical Retreats 7 | . 3 1 1 . . . . . 2 Traps | -11 -10 -10 -9 -9 -8 -7 -7 -7 -7 ------- Run | Yrd Mat Min Mat Min Mat Fac Sto Rec Scr Traps Triggered 5 | . 1 . . . 1 1 2 . . Indirectly . | . . . . . . . . . . Trap Hack Attempts 17 | . 17 . . . . . . . . Triggered . | . . . . . . . . . . Disarmed 3 | . 3 . . . . . . . . Reprogrammed . | . . . . . . . . . . Reused . | . . . . . . . . . . Traps Extracted . | . . . . . . . . . . Installed . | . . . . . . . . . . Triggered . | . . . . . . . . . . Machines | -11 -10 -10 -9 -9 -8 -7 -7 -7 -7 ---------- Run | Yrd Mat Min Mat Min Mat Fac Sto Rec Scr Machines Disabled 20 | . . . 2 2 6 3 5 . 2 Max in Single Turn 3 | . . . 1 1 3 1 1 . 1 Machines Repaired . | . . . . . . . . . . Machines Dismantled 1 | . . . . . . . 1 . . Machines Sabotaged . | . . . . . . . . . . Overloaded Fab Kills . | . . . . . . . . . . Hacking | -11 -10 -10 -9 -9 -8 -7 -7 -7 -7 --------- Run | Yrd Mat Min Mat Min Mat Fac Sto Rec Scr Machines Accessed 53 | . 6 . 15 . 6 2 10 12 2 Terminals 36 | . 5 . 10 . 4 2 9 6 . Fabricators . | . . . . . . . . . . Repair Stations 1 | . . . 1 . . . . . . Recycling Units 11 | . 1 . 2 . 1 . 1 6 . Scanalyzers 3 | . . . 2 . 1 . . . . Garrison Access . | . . . . . . . . . . Total Hacks 135 | . 19 . 34 . 20 4 19 35 4 Successful 75 | . 11 . 21 . 12 1 8 18 4 Failed 59 | . 8 . 12 . 8 3 11 17 . Catastrophic 9 | . 1 . . . 1 1 4 2 . Database Lockouts 1 | . . . 1 . . . . . . Manual 72 | . 15 . 15 . 16 . 6 20 . Terminals 91 | . 15 . 21 . 16 4 18 17 . Fabricators . | . . . . . . . . . . Repair Stations 1 | . . . 1 . . . . . . Recycling Units 27 | . 4 . 3 . 1 . 1 18 . Scanalyzers 12 | . . . 9 . 3 . . . . Garrison Access . | . . . . . . . . . . Terminal Hacks 24 | . 2 . 5 . 3 1 6 3 4 Record 3 | . . . . . . . . . 3 Part Schematic 3 | . . . . . . 1 . 2 . Robot Analysis 1 | . . . 1 . . . . . . Prototype ID Bank 1 | . . . . . . . . 1 . Open Door 4 | . . . . . . . 4 . . Terminal Index 4 | . 1 . 1 . 1 . 1 . . Registered Components 2 | . . . 1 . 1 . . . . Zone Layout 5 | . 1 . 2 . 1 . 1 . . Proto ID Catalog 1 | . . . . . . . . . 1 Fabricator Hacks . | . . . . . . . . . . Repair Station Hacks . | . . . . . . . . . . Recycling Unit Hacks 8 | . 1 . 2 . 1 . . 4 . Retrieve Components 8 | . 1 . 2 . 1 . . 4 . Scanalyzer 11 | . . . 8 . 3 . . . . Insert Component 3 | . . . 3 . . . . . . Analyze 3 | . . . 3 . . . . . . Retrieve Study 5 | . . . 2 . 3 . . . . Garrison Access Hacks . | . . . . . . . . . . Unauthorized Hacks 32 | . 8 . 6 . 5 . 2 11 . Terminals 27 | . 7 . 6 . 5 . 2 7 . Botnet 5 | . 1 . 1 . . . 1 2 . Operators 2 | . 1 . . . 1 . . . . Skim 20 | . 5 . 5 . 4 . 1 5 . Fabricators . | . . . . . . . . . . Repair Stations . | . . . . . . . . . . Recycling Units 5 | . 1 . . . . . . 4 . Tunnel 5 | . 1 . . . . . . 4 . Scanalyzers . | . . . . . . . . . . Garrison Access . | . . . . . . . . . . Data Cores Recovered 1 | . . . 1 . . . . . . Used . | . . . . . . . . . . Hacking Detections 36 | . 5 . 8 . 4 2 8 9 . Full Trace Events 4 | . . . 1 . . . . 3 . Feedback Events . | . . . . . . . . . . Feedback Blocked . | . . . . . . . . . . Robot Schematics Acquired . | . . . . . . . . . . Robots Built . | . . . . . . . . . . Authchips . | . . . . . . . . . . Time . | . . . . . . . . . . Total Robot Build Rating . | . . . . . . . . . . Part Schematics Acquired 7 | . . . 3 . . 1 . 2 1 Parts Built . | . . . . . . . . . . Authchips . | . . . . . . . . . . Time . | . . . . . . . . . . Total Part Build Rating . | . . . . . . . . . . Part Studies Acquired 5 | . . . 2 . 3 . . . . Parts Repaired . | . . . . . . . . . . Time . | . . . . . . . . . . Parts Recycled . | . . . . . . . . . . Recycled Matter . | . . . . . . . . . . Retrieved Matter . | . . . . . . . . . . Retrieved Components 41 | . 9 . 20 . 2 . . 10 . Parts Scanalyzed 3 | . . . 3 . . . . . . Part Schematics Acquired 3 | . . . 3 . . . . . . Parts Damaged . | . . . . . . . . . . Bothacking | -11 -10 -10 -9 -9 -8 -7 -7 -7 -7 ------------ Run | Yrd Mat Min Mat Min Mat Fac Sto Rec Scr Used RIF Installer . | . . . . . . . . . . Robots Hacked 5 | . 1 . . . . . 1 . 3 Non-combat 1 | . 1 . . . . . . . . Combat 4 | . . . . . . . 1 . 3 Robot Hacks Applied 5 | . 1 . . . . . 1 . 3 parse_system 4 | . . . . . . . 1 . 3 no_distress 1 | . 1 . . . . . . . . Relay Couplers Released . | . . . . . . . . . . Fabnet Peak Effective % . | . . . . . . . . . . Robots Rewired 12 | . . . . . . . . 12 . Allies Hacked . | . . . . . . . . . . Hacks Repelled . | . . . . . . . . . . Allies | -11 -10 -10 -9 -9 -8 -7 -7 -7 -7 -------- Run | Yrd Mat Min Mat Min Mat Fac Sto Rec Scr Total Allies 13 | . . . . 1 . . . 12 . Largest Group 12 | . . . . 1 . . . 12 11 Highest-Rated Group 259 | . . . . 31 . . . 259 247 Highest-Rated Ally 40 | . . . . 31 . . . 40 40 Total Orders 9 | . . . . . . . . . 9 STAY 5 | . . . . . . . . . 5 FOLLOW 1 | . . . . . . . . . 1 AID 3 | . . . . . . . . . 3 Ally Attacks 55 | . . . . 5 . . . 26 24 Total Damage 719 | . . . . 63 . . . 348 308 Kills 7 | . . . . 2 . . . 2 3 Allies Corrupted . | . . . . . . . . . . Allies Melted . | . . . . . . . . . . Intel | -11 -10 -10 -9 -9 -8 -7 -7 -7 -7 ------- Run | Yrd Mat Min Mat Min Mat Fac Sto Rec Scr Active Infowar (turns) 10485 | 12 1713 289 1 880 699 1035 1515 1274 3067 Sensors 2 | . . . . . . . . 2 . Terrain 15 | . 14 . 1 . . . . . . Seismic 3017 | 12 1699 289 . 880 137 . . . . Machine Analysis 6603 | . . . . . 562 185 1515 1274 3067 Jamming 6846 | . . . . . . 1035 1499 1274 3038 Robot Analysis Total 1 | . . . 1 . . . . . . Derelict Logs Recovered 2 | . . 1 . 1 . . . . . Drone Launches . | . . . . . . . . . . Drone Recoveries . | . . . . . . . . . . Exploration | -11 -10 -10 -9 -9 -8 -7 -7 -7 -7 ------------- Run | Yrd Mat Min Mat Min Mat Fac Sto Rec Scr Turns Passed 13905 | 150 1714 319 2834 1204 792 1036 1515 1274 3067 Spaces Moved 6249 | 54 552 126 1154 500 337 475 711 689 1651 Core 13 | 13 . . . . . . . . . Treads 5942 | 41 552 126 1154 500 337 475 417 689 1651 Legs . | . . . . . . . . . . Wheels 294 | . . . . . . . 294 . . Hover . | . . . . . . . . . . Flight . | . . . . . . . . . . Fastest Speed 50 | 50 160 160 145 221 152 152 130 160 160 Average Speed 171 | 133 160 161 196 221 175 160 152 160 160 Slowest Speed 410 | 160 160 240 240 280 226 216 410 160 240 Overloaded Moves . | . . . . . . . . . . Propulsion Burnouts . | . . . . . . . . . . Robots Hopped 7 | . . . . . . . 7 . . Potential Cave-ins . | . . . . . . . . . . Cave-ins Triggered . | . . . . . . . . . . Exploration Rate (%) 63 | 4 83 34 93 94 45 17 82 98 85 Regions Visited 9 Branch Regions 5 Pre-discovered Areas 14 | . 6 . 1 1 . . . 6 . Known Exits Taken 6 | . 1 1 . 1 . 1 1 1 . Unknown Exits Taken 3 | 1 . . 1 . 1 . . . . Scrap Searched 7 | . . 1 . 2 . . . . 4 Spaces Dug 10 | . . . . . . 6 1 2 1 Terrain Destroyed 86 | . . . 4 . 23 9 46 2 2 Melee 9 | . . . . . . 6 1 2 . Projectile 5 | . . . . . . 3 . . 2 AOE 72 | . . . 4 . 23 . 45 . . Terrain Rammed . | . . . . . . . . . . Walls Destroyed . | . . . . . . . . . . Machines Disabled . | . . . . . . . . . . Actions | -11 -10 -10 -9 -9 -8 -7 -7 -7 -7 --------- Run | Yrd Mat Min Mat Min Mat Fac Sto Rec Scr Total 8685 | 94 1303 197 1538 553 474 614 1022 827 2063 Wait 1519 | . 661 44 133 26 22 31 160 75 367 Move 6226 | 53 551 125 1153 499 336 474 696 688 1651 Hop 7 | . . . . . . . 7 . . Pick Up 162 | 13 10 . 56 2 24 13 26 9 9 Fast Attach 27 | . . . 6 1 2 4 12 2 . Attach 53 | 7 1 . 11 1 10 5 9 2 7 Detach 6 | . . 1 . . . 1 3 1 . Swap 84 | . 6 1 30 . 9 7 16 6 9 Drop 139 | . 9 1 45 1 31 10 23 11 8 Fire 400 | 21 47 25 104 23 40 63 50 18 9 Melee 34 | . 1 . . . . 6 9 15 3 Ram . | . . . . . . . . . . Kick . | . . . . . . . . . . Crush 3 | . . . . . . . 3 . . Escape Stasis . | . . . . . . . . . . Rewire . | . . . . . . . . . . Trap 17 | . 17 . . . . . . . . Miscellaneous 8 | . . . . . . . 8 . . Route ------- -11/Scrapyard -10/Materials (discovered 6 exits: *Mat x3 / *Min x2 / Sub) -10/Mines (discovered 2 exits: *Mat x2) -9/Materials (discovered 4 exits: *Mat x3 / [*Min]) -9/Mines (discovered 2 exits: *Mat x2) -8/Materials -7/Factory -7/Storage (discovered 2 exits: Fac / *Rec) -7/Recycling (discovered 2 exits: [*Fac] / *Scr) -7/Scraptown (discovered 1 exit: [*Fac]) History --------- Turn | Location | Event 17 | -11/Scrapyard | Discovered new exit (range 14) 151 | -11/Scrapyard | Entered Materials 303 | -10/Materials | Discovered new exit (range 5) 312 | -10/Materials | Build established: Mutant 868 | -10/Materials | Discovered new exit (range 10) 995 | -10/Materials | Discovered new exit (range 9) 1236 | -10/Materials | Discovered new exit (range 15) 1240 | -10/Materials | Discovered new exit (range 5) 1351 | -10/Materials | Derelicts attacked the area 1509 | -10/Materials | Learned location of Recycling (-7) 1567 | -10/Materials | Learned location of Storage (-7) 1658 | -10/Materials | Identified exit to Mines 1658 | -10/Materials | Identified exit to Materials 1658 | -10/Materials | Identified exit to Subcaves 1865 | -10/Materials | Entered Mines 2078 | -10/Mines | Learned Materials trap positions 2161 | -10/Mines | Assembled infested the area 2167 | -10/Mines | Core integrity fell below 50% 2184 | -10/Mines | Entered Materials 2184 | -9/Materials | Evolved 2 slots: Propulsion x1, Utility x1 2185 | -9/Materials | Identified exit to Materials 2186 | -9/Materials | Loaded intel: 10 trap records 2202 | -9/Materials | Lost 3 parts (1p1n1w) 3018 | -9/Materials | Central database locked down 3494 | -9/Materials | Discovered exit to Materials (range 11) 3799 | -9/Materials | Discovered new exit (range 10) 4214 | -9/Materials | Discovered exit to Materials (range 16) 4430 | -9/Materials | Learned location of 1 exit from Storage 4498 | -9/Materials | Learned 2 Storage zone layouts 4555 | -9/Materials | Learned 2 Storage zone layouts 4984 | -9/Materials | First assault squad dispatched 5018 | -9/Materials | Entered Mines 5257 | -9/Mines | Excavation squad dispatched 5257 | -9/Mines | A large section of the Mines collapsed 5414 | -9/Mines | A weapon hastily lodged in a ceiling crevice suddenly fell to the ground 5474 | -9/Mines | Received a Rocket Launcher from a helpful Derelict 5560 | -9/Mines | Received a Mining Laser from a helpful Derelict 5887 | -9/Mines | Found a damaged Exp. Sensor Array with a note attached 5901 | -9/Mines | Found Prototype Device 6222 | -9/Mines | Entered Materials 6222 | -8/Materials | Evolved 2 slots: Propulsion x1, Utility x1 6920 | -8/Materials | Discovered new exit (range 15) 7001 | -8/Materials | Found Prototype Device 7014 | -8/Materials | Entered Factory 7014 | -7/Factory | Evolved 2 slots: Utility x2 7015 | -7/Factory | Identified exit to Storage 7296 | -7/Factory | Build established: Scavenger-Mutant 8050 | -7/Factory | Entered Storage 8051 | -7/Storage | Identified exit to Recycling 8052 | -7/Storage | Identified exit to Factory 8077 | -7/Storage | Met 01-MTF 8369 | -7/Storage | Found 01-MTF's Shockpuncher 8612 | -7/Storage | Destroyed 01-MTF 8982 | -7/Storage | Build established: Mutant 9562 | -7/Storage | Used back door to open Recycling access 9565 | -7/Storage | Entered Recycling 9816 | -7/Recycling | Identified Exp. Sensor Array 9960 | -7/Recycling | Build established: Commander-Mutant 10000 | -7/Recycling | Discovered new exit (range 9) 10038 | -7/Recycling | Learned Factory trap positions 10109 | -7/Recycling | Learned location of Zion (-6) 10170 | -7/Recycling | Learned location of Proximity Caves (-5) 10221 | -7/Recycling | Learned Extension trap positions 10260 | -7/Recycling | Learned Extension terminal intel 10290 | -7/Recycling | Learned location of 1 exit from Upper Caves 10312 | -7/Recycling | Identified exit to Scraptown 10766 | -7/Recycling | Scanned before Scraplab entrance 10788 | -7/Recycling | Entered Scraplab 10839 | -7/Recycling | Entered Scraptown 10839 | -7/Scraptown | Accompanied by 11 allies 10839 | -7/Scraptown | System corruption cleaned by C-Scrubber 10902 | -7/Scraptown | Visited Shadow of the Wyrm 10951 | -7/Scraptown | Visited Awakened 11001 | -7/Scraptown | Visited TADAMA 11020 | -7/Scraptown | Visited IN-MT5's Study 11046 | -7/Scraptown | Visited Cyclists 11078 | -7/Scraptown | Visited Assassins FH 11170 | -7/Scraptown | Discovered new exit (range 11) 11601 | -7/Scraptown | Visited UFD Registry 11601 | -7/Scraptown | Registered with UFD as "Slugdrive" 11649 | -7/Scraptown | Visited Derelict Rescue Squad 11704 | -7/Scraptown | Found DRS Beacon 11734 | -7/Scraptown | Visited A0-MCA Data Center 11790 | -7/Scraptown | Visited Abandonware Association 11806 | -7/Scraptown | Learned abandonware demo "MELTYB.EXE" 11839 | -7/Scraptown | Visited DA-N13 Charitable Foundation 11854 | -7/Scraptown | Found DCF Scrap (26 items) 11881 | -7/Scraptown | Visited Junk Repository 11908 | -7/Scraptown | Visited Science Guys 11959 | -7/Scraptown | Visited Scrap Suit Storage 11985 | -7/Scraptown | Visited Junk Repository 12033 | -7/Scraptown | Visited Chapter 10 12176 | -7/Scraptown | Given an A rating by A0-MCA 12181 | -7/Scraptown | Found A0-MCA's Component Scanner 13829 | -7/Scraptown | Attacked by Scraptown defenders 13870 | -7/Scraptown | Attached CPS modules to 6N-0HS(c). 13894 | -7/Scraptown | Core integrity fell below 50% 13904 | -7/Scraptown | Core integrity fell below 20% 13906 | -7/Scraptown | Destroyed by 9X-HQ0(g) with Beamcaster Last Messages --------------- 13899_ N6-E89(E) suffers critical hit (Destroy). 13899_ 11-2ZI(j) overheating. 13900_ Penetrated by Slug. 13900_ 11-2ZI(j) overheating. 13900_ Adv. Targeting Computer destroyed. 13901_ Slug penetrates Wall. 13901_ Penetrated by Bolt. 13901_ 11-2ZI(j) overheating. 13901_ Med. Treads destroyed. 13902_ Penetrated by Bolt. 13902_ 11-2ZI(j) overheating. 13903_ Penetrated by Slug. 13903_ Penetrated by Bolt. 13903_ Imp. EM Pulse Cannon destroyed. 13903_ Bolt penetrates OO-XLU(E). 13904_ T1-W9H(E) destroyed. 13904_ Penetrated by Bolt. 13905_ Penetrated by Slug. 13905_ 11-2ZI(j) overheating. 13906_ 11-2ZI(j) heat damages core (-10). Map ----- +----------------------------------------------------+ | | | | | | | | | | | | | | | | | | | | | | | | | | | ?????????????????????????????????????????????????? | | #???????????????????#######??????????????????????? | | "???????????????????? #??????????????????????? | | "???????????????????< ??##########???##????#? | | "?????########??????? #?#"""""""""#?""""???"#? | | "#???#"""""""#???????# #?#" "#" ??? "?? | | "#???#"" ""#???????# #?#" "?" "?? | | "#???#"" ""#???????# #?#" "#" "" "?? | | ""###?#""" ""#????#### !#?#" """ "#" " "?? | | #?#"" ""#????# ;#E*E###" "#" "?? | | ###""" """######;;*!!%=##"""""" ""#"" """"""#? | | [%!!=!! #? | | E=@%[ #? | | !!x=![ #? | | ###### ###########*%![!;#########"" """"#####? | | #????# #?????????#;!!%=; #??????#" "#????? | | #????" "?????#???##[*!*;#######?#" ""#????? | | #??? " " ????? ???#%!jj """""#?#" """#????? | | " ""#??" "??### ###E ""#?#" """#????? | | " "#? " " ?#"" "" ! "#?#"""""""#????? | | " "#?"?"" """"?#" "" =%! ""#??########????? | | "#????# #????#" " ! """#??????????????? | | "#????? ?????#" g ## hh####??????????????? | | " ""#????? ?????#" "" " j####j######??????????### | | # ###????? ?????#" " #?#""g""""###??#????? | | ? ??????? ?????#""""""j g#?#" r " #??# | | ?##??????? ?????####### #?#" "###??# """"" | | ??????????????????????# #?#"" " #??# """"" | | #########??############ #?#""" " #??# """" | | #?#"" " #??# | | #?#" " #??? | | ##########?############ #?#" """#????? | | ?????????????????????# #?# !%[ #??????? | | #####???????????????### ##########%########### # | | """"#??????????####?# / | | "#??????????#""" # | | ! "#??????????# # | +----------------------------------------------------+ Best States ------------- Heat Dissipation 34 Energy Generation 31 Energy Capacity 310 Matter Stores 300 Matter Capacity 300 Sight Range 16 Terrain Scan Range 16 Terrain Scan Density 10 Jamming Range 12 Armor Coverage 600 Resistance: TH 15 Evasion (%) 50 Targeting Accuracy 8 Recoil Reduction 4 Offensive Hacking 10 Item Schematics ----------------- Imp. Flight Unit | -9/Materials | Scanalyzed Huge Storage Unit | -9/Materials | Scanalyzed Hcp. Storage Unit | -9/Materials | Scanalyzed Fusion Compressor | -7/Factory | Hacked Kinecellerator | -7/Recycling | Hacked Lyr. Heavy Armor Plating | -7/Recycling | Hacked IN-MT5's Pitchfork "Insurrection" | -7/Scraptown | Archive Robot Schematics ------------------ None Fabricated ------------ Nothing Repaired ---------- Nothing Studied --------- Lgt. Treads | -9/Materials | Hacked Autogun | -9/Materials | Hacked Adv. Treads | -8/Materials | Hacked Imp. Treads | -8/Materials | Hacked Flak Cannon | -8/Materials | Hacked Alien Tech Used ----------------- None Achievements -------------- None Challenges ------------ None Game ------ Seed HoverRecoilTerrabomb Manual? 0 Play Time 01:16:36 Cumulative 556.0 hours Start 2025.11.26 @ 21:40:08 End 2025.11.26 @ 23:00:29 Sessions 1 Manual Loads 0 Difficulty Rogue Special Mode None Game No. 726 Rogue 726 Adventurer 0 Explorer 0 Win Type - Total 19 Types 8/1/2/2/2/0/2/2/0/0 Lore% 93 Gallery% 87 Achievement% 72 Wizard Run 0 Options --------- Layout 2 ASCII 0 Keyboard 0 Movement Mouse Keybinds 0 Fullscreen 1 Font 24/Tamsyn Map View 50x44 Zoom Use 0% Tactical HUD 1 Map Filters NONE Filters NONE Steam 1 RUN: 16b29d6f-70fd-49eb-b91e-ecdb4b6344c1